fUST/lending_fUST_20251119
["ID","MTS","AMOUNT","RATE_DAILY","PERIOD"]
[394417809,1763550638820,-500.0,0.00015808,2]
[394417810,1763550638829,-500.0,0.00015808,2]
[394417811,1763550638838,-500.0,0.00015808,2]
[394417812,1763550638847,-500.0,0.00015808,2]
[394417813,1763550638856,-500.0,0.00015808,2]
[394417814,1763550638866,-500.0,0.00015808,2]
[394417815,1763550638876,-500.0,0.00015808,2]
[394417816,1763550638885,-255.04931033,0.00015808,2]
[394417817,1763550638895,-500.0,0.00015808,2]
[394417818,1763550638904,-500.0,0.00015808,2]
[394417819,1763550638914,-500.0,0.00015808,2]
[394417820,1763550638923,-500.0,0.00015808,2]
[394417821,1763550638933,-500.0,0.00015808,2]
[394417822,1763550638943,-500.0,0.00015808,2]
[394417823,1763550638953,-500.0,0.00015808,2]
[394417824,1763550638963,-500.0,0.00015808,2]
[394417825,1763550638973,-500.0,0.00015808,2]
[394417826,1763550638983,-47567.10940344,0.00015809,2]
[394417827,1763550638993,-500.0,0.0001581,2]
[394417828,1763550639003,-211.29048467,0.00015813,2]
[394417829,1763550639013,-3582.0,0.00015813,2]
[394417830,1763550639023,-500.0,0.00016084,2]
[394417831,1763550639033,-687.23718503,0.00016112,2]
[394417832,1763550639042,-300.0,0.00016128,2]
[394417833,1763550639052,-300.0,0.00016128,2]
[394417834,1763550639062,-300.0,0.00016128,2]
[394417835,1763550639073,-300.0,0.00016128,2]
[394417836,1763550639082,-300.0,0.00016128,2]
[394417837,1763550639092,-300.0,0.00016128,2]
[394417838,1763550639102,-300.0,0.00016128,2]
[394417839,1763550639117,-300.0,0.00016128,2]
[394417840,1763550639126,-300.0,0.00016128,2]
[394417841,1763550639136,-300.0,0.00016128,2]
[394417842,1763550639146,-300.0,0.00016128,2]
[394417843,1763550639157,-300.0,0.00016128,2]
[394417844,1763550639167,-300.0,0.00016128,2]
[394417845,1763550639177,-300.0,0.00016128,2]
[394417846,1763550639188,-300.0,0.00016128,2]
[394417847,1763550639198,-500.0,0.00016128,2]
[394417848,1763550639208,-1832.0,0.00016128,2]
[394417849,1763550639218,-500.0,0.00016128,2]
[394417850,1763550639228,-155.39006501,0.00016128,2]
[394417851,1763550639238,-157.8498372,0.00016128,2]
[394417852,1763550639247,-151.0,0.00016128,2]
[394417853,1763550639257,-500.0,0.00016155,2]
[394417854,1763550639266,-1832.0,0.00016155,2]
[394417855,1763550639277,-500.0,0.00016155,2]
[394417856,1763550639287,-205.52159326,0.00016155,2]
[394417857,1763550639297,-500.0,0.00016183,2]
[394417858,1763550639307,-1832.0,0.00016183,2]
[394417859,1763550639317,-500.0,0.00016183,2]
[394417860,1763550639327,-500.0,0.0001621,2]
[394417861,1763550639337,-1832.0,0.0001621,2]
[394417862,1763550639346,-500.0,0.0001621,2]
[394417863,1763550639356,-500.0,0.00016238,2]
[394417864,1763550639366,-1832.0,0.00016238,2]
[394417865,1763550639376,-500.0,0.00016238,2]
[394417866,1763550639385,-638.0,0.00016265,2]
[394417867,1763550639395,-1832.0,0.00016265,2]
[394417868,1763550639404,-500.0,0.00016265,2]
[394417869,1763550639413,-1832.0,0.00016292,2]
[394417870,1763550639422,-500.0,0.00016292,2]
[394417871,1763550639431,-500.0,0.00016319,2]
[394417872,1763550639440,-249.53996573,0.00016319,2]
[394417873,1763550639449,-296.86889616,0.00016319,2]
[394417874,1763550639458,-1832.0,0.0001632,2]
[394417875,1763550639468,-500.0,0.0001632,2]
[394417876,1763550639477,-1832.0,0.00016347,2]
[394417877,1763550639486,-500.0,0.00016347,2]
[394417878,1763550639497,-1832.0,0.00016375,2]
[394417879,1763550639507,-513.0,0.00016375,2]
[394417880,1763550639517,-1832.0,0.00016402,2]
[394417881,1763550639527,-1832.0,0.00016429,2]
[394417882,1763550639536,-500.0,0.00016438,2]
[394417883,1763550639545,-500.0,0.00016438,2]
[394417884,1763550639554,-467.0276291,0.00016438,2]
[394417885,1763550639563,-500.0,0.00016438,2]
[394417886,1763550639572,-500.0,0.00016438,2]
[394417887,1763550639581,-500.0,0.00016438,2]
[394417888,1763550639590,-500.0,0.00016438,2]
[394417889,1763550639600,-500.0,0.00016438,2]
[394417890,1763550639609,-500.0,0.00016438,2]
[394417891,1763550639618,-500.0,0.00016438,2]
[394417892,1763550639628,-500.0,0.00016438,2]
[394417893,1763550639638,-500.0,0.00016438,2]
[394417894,1763550639647,-507.12625121,0.00016438,2]
[394417895,1763550639656,-194.68017902,0.00016438,2]
[394417896,1763550639665,-500.0,0.00016438,2]
[394417897,1763550639674,-500.0,0.00016438,2]
[394417898,1763550639684,-500.0,0.00016438,2]
[394417899,1763550639692,-500.0,0.00016438,2]
[394417900,1763550639702,-500.0,0.00016438,2]
[394417901,1763550639711,-1832.0,0.00016457,2]
[394417902,1763550639720,-284.64,0.00016474,3]
[394417903,1763550639729,-1832.0,0.00016484,2]
[394417904,1763550639739,-1832.0,0.00016512,2]
[394417905,1763550639748,-1832.0,0.00016539,2]
[394417906,1763550639759,-1832.0,0.00016566,2]
[394417907,1763550639768,-1865.10511203,0.0001657,2]
[394417908,1763550639778,-1832.0,0.00016594,2]
[394417909,1763550639788,-187.79,0.00016615,3]
[394417910,1763550639797,-563.41,0.00016615,3]
[394417911,1763550639806,-269.29,0.00016615,3]
[394417912,1763550639815,-807.89,0.00016615,3]
[394417913,1763550639825,-1832.0,0.00016621,2]
[394417914,1763550639835,-200.0,0.00016624,2]
[394417915,1763550639843,-343622.01480894,0.00016625,2]
[394417916,1763550639865,-701.99014555,0.00016625,2]
[394417921,1763550640382,-31734.01177929,0.00016625,2]
[394417922,1763550640426,-532.5,0.00016625,2]
[394417923,1763550640437,-5713.65036577,0.00016625,2]
[394417935,1763550644594,-853.94,0.00016615,3]
[394417936,1763550644604,-241.88472765,0.00016615,3]
[394417937,1763550644613,-1657.4682726,0.00016625,2]
[394417938,1763550645183,-3646.61968074,0.00016625,2]
[394417945,1763550646600,-101722.37050349,0.00016625,2]
[394417947,1763550924223,164.14255017,0.00015003,2]
[394417949,1763551103465,155.43089966,0.00015003,2]
[394417970,1763551372468,560.12637164,0.00014541,2]
[394417971,1763551374533,765.93857125,0.00014551,2]
[394417972,1763551406252,282.3905454,0.00014482,2]
[394417973,1763551456850,1252.611456,0.00014482,2]
[394417974,1763551458516,5991.15543577,0.00014482,2]
[394417975,1763551458539,654.10172403,0.00014482,2]
[394417976,1763551471829,5000.0,0.00015003,2]
[394417977,1763551479642,4345.90827597,0.00015003,2]
[394417978,1763551479665,654.09172403,0.00015003,2]
[394417979,1763551495283,5000.0,0.00015003,2]
[394417980,1763551503037,4345.91827597,0.00015003,2]
[394417981,1763551503060,654.08172403,0.00015003,2]
[394417982,1763551518181,5000.0,0.00015003,2]
[394417983,1763551526385,4345.92827597,0.00015003,2]
[394417984,1763551526409,654.07172403,0.00015003,2]
[394417985,1763551550874,5000.0,0.00015003,2]
[394417988,1763551565967,4345.93827597,0.00015003,2]
[394417989,1763551565989,654.06172403,0.00015003,2]
[394417992,1763551573754,5000.0,0.00015003,2]
[394417993,1763551589092,4345.94827597,0.00015003,2]
[394417994,1763551589116,654.05172403,0.00015003,2]
[394417995,1763551596802,5000.0,0.00015003,2]
[394417996,1763551611972,4345.95827597,0.00015003,2]
[394417997,1763551611999,391.27468535,0.00015003,2]
[394417998,1763551619853,2015.21321808,0.00015003,2]
[394417999,1763551634972,5000.0,0.00015003,2]
[394418000,1763551657388,2593.52209657,0.00015003,2]
[394418001,1763551657411,2406.47790343,0.00015003,2]
[394418002,1763551663859,467.96377739,0.00014541,2]
[394418003,1763551666302,1869.98325444,0.00014541,2]
[394418004,1763551668722,1491.63454042,0.00014551,2]
[394418005,1763551671232,2651.79473852,0.00014551,2]
[394418006,1763551680224,1112.1557858,0.00015003,2]
[394418007,1763551680248,3887.8442142,0.00015003,2]
[394418008,1763551702696,5000.0,0.00015003,2]
[394418016,1763551724883,884.596409,0.00013699,2]
[394418017,1763551725326,227.5693768,0.00015003,2]
[394418019,1763551727844,-4576.76171122,0.00015003,2]
[394418021,1763551828398,173.7596395,0.00014541,2]
[394418024,1763551831508,672.72693806,0.00014541,2]
[394418025,1763551831532,21.61658137,0.00014541,2]
[394418075,1763551832754,-2010.0,0.00015004,2]
[394418076,1763551832764,-300.0,0.00015252,2]
[394418077,1763551832772,-157.81999048,0.00015252,2]
[394418078,1763551832782,-963.64013275,0.00015253,2]
[394418079,1763551832792,-174.67797601,0.00015313,2]
[394418080,1763551832802,-557.80822732,0.00015313,2]
[394418081,1763551832812,-300.0,0.00015313,2]
[394418082,1763551832822,-300.0,0.00015313,2]
[394418083,1763551832831,-300.0,0.00015313,2]
[394418084,1763551832840,-300.0,0.00015313,2]
[394418085,1763551832850,-1200.0,0.00015313,2]
[394418086,1763551832859,-50000.0,0.00015314,2]
[394418087,1763551832868,-1200.0,0.00015314,2]
[394418088,1763551832877,-500.0,0.00015315,2]
[394418089,1763551832886,-151.0,0.00015316,2]
[394418090,1763551832894,-403.0821296,0.00015508,2]
[394418091,1763551832904,-632.81,0.00015807,2]
[394418092,1763551832913,-618.79133999,0.00015813,2]
[394418093,1763551832923,-89890.5704196,0.00016,2]
[394418094,1763551832949,-418.6089673,0.00016,2]
[394418095,1763551834258,1186.84039479,0.00014551,2]
[394418136,1763551838444,-500.0,0.00015313,2]
[394418138,1763551838454,-500.0,0.00015313,2]
[394418140,1763551838465,-276.14019746,0.00015313,2]
[394418142,1763551838480,-223.85980254,0.00015313,2]
[394418144,1763551838489,-392.66085647,0.00015313,2]
[394418146,1763551838502,-107.33914353,0.00015313,2]
[394418148,1763551838511,-500.0,0.00015313,2]
[394418150,1763551838520,-500.0,0.00015313,2]
[394418152,1763551838529,-500.0,0.00015313,2]
[394418153,1763551838539,-345.88419949,0.00015313,2]
[394418155,1763551838550,-59.47874222,0.00015313,2]
[394418158,1763551838562,-440.52125778,0.00015313,2]
[394418161,1763551838571,-500.0,0.00015313,2]
[394418162,1763551838580,-500.0,0.00015313,2]
[394418164,1763551838590,-346.20668218,0.00015313,2]
[394418172,1763551838667,-55.44562025,0.00015313,2]
[394418174,1763551838677,-500.0,0.00015313,2]
[394418176,1763551838687,-500.0,0.00015313,2]
[394418178,1763551838696,-500.0,0.00015313,2]
[394418180,1763551838706,-500.0,0.00015313,2]
[394418182,1763551838716,-178.72396221,0.00015313,2]
[394418184,1763551838726,-500.0,0.00015313,2]
[394418186,1763551838736,-500.0,0.00015313,2]
[394418188,1763551838747,-500.0,0.00015313,2]
[394418190,1763551838757,-500.0,0.00015313,2]
[394418192,1763551838766,-500.0,0.00015313,2]
[394418194,1763551838776,-500.0,0.00015313,2]
[394418196,1763551838785,-500.0,0.00015313,2]
[394418198,1763551838794,-500.0,0.00015313,2]
[394418200,1763551838804,-500.0,0.00015313,2]
[394418202,1763551838814,-500.0,0.00015313,2]
[394418203,1763551838823,-500.0,0.00015313,2]
[394418205,1763551838833,-500.0,0.00015313,2]
[394418207,1763551838844,-500.0,0.00015313,2]
[394418209,1763551838855,-500.0,0.00015313,2]
[394418211,1763551838865,-500.0,0.00015313,2]
[394418213,1763551838875,-500.0,0.00015313,2]
[394418215,1763551838885,-500.0,0.00015313,2]
[394418217,1763551838895,-500.0,0.00015313,2]
[394418219,1763551838906,-500.0,0.00015313,2]
[394418221,1763551838915,-500.0,0.00015313,2]
[394418223,1763551838925,-500.0,0.00015313,2]
[394418225,1763551838935,-500.0,0.00015313,2]
[394418227,1763551838944,-500.0,0.00015313,2]
[394418229,1763551838954,-500.0,0.00015313,2]
[394418231,1763551838964,-500.0,0.00015313,2]
[394418233,1763551838975,-500.0,0.00015313,2]
[394418235,1763551838985,-500.0,0.00015313,2]
[394418237,1763551838995,-500.0,0.00015313,2]
[394418239,1763551839005,-375.9129845,0.00015313,2]
[394418241,1763551839020,-28567.4666131,0.00016,2]
[394418243,1763551839030,-151.0,0.000161,2]
[394418245,1763551839040,-2565.15,0.00016109,3]
[394418247,1763551839049,-1282.58,0.00016109,3]
[394418249,1763551839059,-641.29,0.00016109,3]
[394418251,1763551839068,-320.64,0.00016109,3]
[394418253,1763551839077,-160.32,0.00016109,3]
[394418254,1763551839087,-481.01,0.00016109,3]
[394418256,1763551839097,-387.47426332,0.00016112,2]
[394418258,1763551839107,-358.932,0.0001612,2]
[394418260,1763551839120,-183.731,0.0001612,2]
[394418262,1763551839130,-161.14315145,0.00016152,2]
[394418264,1763551839140,-644.57260582,0.00016152,2]
[394418266,1763551839149,-1450.28836309,0.00016152,2]
[394418268,1763551839158,-2578.29042327,0.00016152,2]
[394418270,1763551839168,-4028.57878636,0.00016152,2]
[394418272,1763551839177,-294.06528913,0.00016152,2]
[394418273,1763551839187,-528.78820291,0.00016152,2]
[394418275,1763551839197,-1865.10511203,0.00016187,2]
[394418277,1763551839207,-151.0,0.000163,2]
[394418279,1763551839217,-151.0,0.000163,2]
[394418281,1763551839227,-2891.50583401,0.00016368,2]
[394418283,1763551839237,-151.0,0.000164,2]
[394418285,1763551839246,-151.0,0.000164,2]
[394418287,1763551839256,-151.0,0.000164,2]
[394418289,1763551839266,-151.0,0.000164,2]
[394418290,1763551839275,-916.0,0.00016429,2]
[394418292,1763551839286,-151.0,0.00016438,2]
[394418294,1763551839295,-151.0,0.00016438,2]
[394418296,1763551839305,-500.0,0.00016438,2]
[394418298,1763551839315,-500.0,0.00016438,2]
[394418299,1763551839324,-500.0,0.00016438,2]
[394418301,1763551839333,-500.0,0.00016438,2]
[394418303,1763551839343,-500.0,0.00016438,2]
[394418304,1763551839353,-500.0,0.00016438,2]
[394418306,1763551839364,-500.0,0.00016438,2]
[394418308,1763551839372,-500.0,0.00016438,2]
[394418310,1763551839381,-500.0,0.00016438,2]
[394418312,1763551839392,-500.0,0.00016438,2]
[394418313,1763551839401,-500.0,0.00016438,2]
[394418315,1763551839411,-500.0,0.00016438,2]
[394418317,1763551839420,-500.0,0.00016438,2]
[394418319,1763551839430,-500.0,0.00016438,2]
[394418321,1763551839439,-500.0,0.00016438,2]
[394418323,1763551839449,-500.0,0.00016438,2]
[394418325,1763551839459,-500.0,0.00016438,2]
[394418326,1763551839470,-500.0,0.00016438,2]
[394418328,1763551839485,-500.0,0.00016438,2]
[394418330,1763551839494,-500.0,0.00016438,2]
[394418332,1763551839504,-500.0,0.00016438,2]
[394418334,1763551839514,-500.0,0.00016438,2]
[394418336,1763551839523,-500.0,0.00016438,2]
[394418338,1763551839532,-500.0,0.00016438,2]
[394418340,1763551839541,-500.0,0.00016438,2]
[394418341,1763551839550,-500.0,0.00016438,2]
[394418342,1763551839560,-500.0,0.00016438,2]
[394418343,1763551839569,-617.18232728,0.00016438,2]
[394418344,1763551839577,-500.0,0.00016438,2]
[394418345,1763551839586,-500.0,0.00016438,2]
[394418346,1763551839595,-252.12161121,0.00016438,2]
[394418347,1763551839604,-500.0,0.00016438,2]
[394418348,1763551839613,-500.0,0.00016438,2]
[394418349,1763551839622,-500.0,0.00016438,2]
[394418350,1763551839632,-500.0,0.00016438,2]
[394418351,1763551839641,-500.0,0.00016438,2]
[394418352,1763551839650,-500.0,0.00016438,2]
[394418353,1763551839659,-500.0,0.00016438,2]
[394418354,1763551839668,-500.0,0.00016438,2]
[394418355,1763551839677,-500.0,0.00016438,2]
[394418356,1763551839686,-500.0,0.00016438,2]
[394418357,1763551839695,-326.26251211,0.00016438,2]
[394418358,1763551839704,-500.0,0.00016438,2]
[394418359,1763551839713,-500.0,0.00016438,2]
[394418360,1763551839722,-500.0,0.00016438,2]
[394418361,1763551839731,-500.0,0.00016438,2]
[394418362,1763551839740,-500.0,0.00016438,2]
[394418363,1763551839748,-500.0,0.00016438,2]
[394418364,1763551839758,-500.0,0.00016438,2]
[394418365,1763551839767,-500.0,0.00016438,2]
[394418366,1763551839776,-500.0,0.00016438,2]
[394418367,1763551839785,-500.0,0.00016438,2]
[394418369,1763551839794,-500.0,0.00016438,2]
[394418371,1763551839804,-500.0,0.00016438,2]
[394418372,1763551839814,-500.0,0.00016438,2]
[394418384,1763551839916,-500.0,0.00016438,2]
[394418386,1763551839932,-500.0,0.00016438,2]
[394418388,1763551839942,-500.0,0.00016438,2]
[394418391,1763551839952,-500.0,0.00016438,2]
[394418393,1763551839962,-500.0,0.00016438,2]
[394418394,1763551839971,-500.0,0.00016438,2]
[394418396,1763551839980,-500.0,0.00016438,2]
[394418399,1763551839990,-151.0,0.00016438,2]
[394418400,1763551839999,-151.0,0.00016438,2]
[394418402,1763551840009,-151.0,0.00016438,2]
[394418405,1763551840019,-916.0,0.00016456,2]
[394418407,1763551840029,-406.61442334,0.00016459,2]
[394418409,1763551840038,-500.0,0.00016473,2]
[394418411,1763551840047,-500.0,0.00016473,2]
[394418413,1763551840057,-500.98033395,0.00016473,2]
[394418415,1763551840066,-500.0,0.00016473,2]
[394418417,1763551840075,-500.0,0.00016473,2]
[394418419,1763551840084,-500.0,0.00016473,2]
[394418421,1763551840093,-500.0,0.00016473,2]
[394418423,1763551840102,-500.0,0.00016473,2]
[394418424,1763551840112,-500.0,0.00016473,2]
[394418426,1763551840121,-500.0,0.00016473,2]
[394418428,1763551840131,-510.08784499,0.00016473,2]
[394418431,1763551840140,-325.78165932,0.00016473,2]
[394418434,1763551840150,-500.0,0.00016473,2]
[394418435,1763551840159,-500.0,0.00016473,2]
[394418437,1763551840170,-500.0,0.00016473,2]
[394418439,1763551840179,-500.0,0.00016473,2]
[394418441,1763551840188,-500.0,0.00016473,2]
[394418443,1763551840197,-500.0,0.00016473,2]
[394418445,1763551840209,-500.0,0.00016473,2]
[394418447,1763551840218,-500.0,0.00016473,2]
[394418449,1763551840227,-500.0,0.00016473,2]
[394418451,1763551840237,-500.0,0.00016473,2]
[394418453,1763551840246,-501.19694939,0.00016473,2]
[394418455,1763551840255,-500.81441983,0.00016473,2]
[394418457,1763551840264,-305.81187291,0.00016473,2]
[394418459,1763551840273,-500.0,0.00016473,2]
[394418461,1763551840283,-500.0,0.00016473,2]
[394418463,1763551840292,-916.0,0.00016484,2]
[394418465,1763551840302,-200.0,0.00016486,2]
[394418467,1763551840312,-151.0,0.00016487,2]
[394418469,1763551840321,-240.551144,0.00016487,2]
[394418471,1763551840330,-240.551144,0.00016487,2]
[394418473,1763551840339,-240.551144,0.00016487,2]
[394418475,1763551840348,-240.551144,0.00016487,2]
[394418477,1763551840358,-151.0,0.00016487,2]
[394418479,1763551840367,-151.0,0.00016487,2]
[394418481,1763551840376,-316400.84847459,0.00016487,2]
[394418492,1763551840471,-57532.3514743,0.00016487,2]
[394418494,1763551840486,-8186.02382301,0.00016487,2]
[394418497,1763551840496,-31076.51225682,0.00016487,2]
[394418539,1763551845037,-1865.10511203,0.00016335,2]
[394418541,1763551845046,-1014.19890107,0.00016487,2]
[394418684,1763552071496,1525.28686092,0.00015003,2]
[394418685,1763552080941,7266.26616292,0.00014328,2]
[394418686,1763552080962,4724.50808278,0.00014328,2]
[394418687,1763552094121,3190.27790477,0.00015003,2]
[394418688,1763552102619,2085.22401245,0.00015003,2]
[394418689,1763552102642,2914.77598755,0.00015003,2]
[394418690,1763552117763,3512.79342047,0.00015003,2]
[394418691,1763552125734,3572.44059198,0.00015003,2]
[394418692,1763552125758,1427.55940802,0.00015003,2]
[394418693,1763552141449,5000.0,0.00015003,2]
[394418694,1763552149235,3572.45059198,0.00015003,2]
[394418695,1763552162896,160.32,0.00015301,3]
[394418696,1763552164440,5000.0,0.00014994,2]
[394418697,1763552173522,187.05,0.00015301,3]
[394418698,1763552184169,561.15,0.00015301,3]
[394418699,1763552194785,213.76,0.00015301,3]
[394418700,1763552276656,230.1124628,0.00030137,120]
[394418701,1763552344324,5000.0,0.000161,3]
[394418702,1763552367662,1427.54940802,0.000161,3]
[394418703,1763552479893,5000.01,0.00014208,2]
[394418704,1763552479914,10000.01,0.00014208,2]
[394418705,1763552479934,10000.01,0.00014208,2]
[394418706,1763552479955,6006.6261893,0.00014208,2]
[394418707,1763552490754,2549.36765377,0.00014994,2]
[394418708,1763552498515,1444.01615693,0.00014994,2]
[394418709,1763552498540,3555.98384307,0.00014994,2]
[394418710,1763552500204,6444.02615693,0.00014322,2]
[394418711,1763552500224,10000.01,0.00014322,2]
[394418712,1763552500245,10000.01,0.00014322,2]
[394418713,1763552500264,2630.91356747,0.00014322,2]
[394418714,1763552503072,358.932,0.00014907,2]
[394418715,1763552503104,183.731,0.00014907,2]
[394418716,1763552511810,493.2584986,0.00014208,2]
[394418717,1763552513828,5000.0,0.00014989,2]
[394418718,1763552521638,3964.0885014,0.00014989,2]
[394418719,1763552521659,1035.9114986,0.00014989,2]
[394418720,1763552537382,4061.18384679,0.00014989,2]
[394418721,1763552545072,336.09746256,0.00014541,2]
[394418722,1763552545286,4566.81719205,0.00014989,2]
[394418723,1763552545308,433.18280795,0.00014989,2]
[394418724,1763552546910,1343.04546038,0.00014541,2]
[394418725,1763552548910,595.17258995,0.00014577,2]
[394418726,1763552551152,1071.31066191,0.00014577,2]
[394418727,1763552553064,1904.55228783,0.00014577,2]
[394418728,1763552555473,834.152784,0.00014546,2]
[394418729,1763552567555,3818.59340798,0.00014989,2]
[394418730,1763552568157,999.0,0.00014207,2]
[394418731,1763552582788,5000.0,0.00014859,2]
[394418732,1763552584868,2378.11,0.00015199,3]
[394418733,1763552595385,1189.05,0.00015198,3]
[394418734,1763552598229,972.17720201,0.00014859,2]
[394418735,1763552606284,594.53,0.00015198,3]
[394418736,1763552616916,297.26,0.00015198,3]
[394418737,1763552627534,891.82,0.00015198,3]
[394418738,1763552725984,678.95230446,0.00014541,2]
[394418739,1763552728652,515.2763025,0.00014577,2]
[394418741,1763552731308,926.56984715,0.00014577,2]
[394418745,1763552755375,908.03434388,0.00014859,2]
[394418746,1763552755396,4091.96565612,0.00014859,2]
[394418748,1763552763523,5000.0,0.00014859,2]
[394418751,1763552771643,150.0,0.00014859,2]
[394418755,1763552786942,758.04434388,0.00014859,2]
[394418756,1763552786964,4241.95565612,0.00014859,2]
[394418769,1763552794817,150.0,0.00014859,2]
[394418783,1763552803213,5000.0,0.00014859,2]
[394418784,1763552811013,608.05434388,0.00014859,2]
[394418785,1763552822449,396.66,5e-05,2]
[394418786,1763552822740,396.66,5.1e-05,2]
[394418787,1763552823118,396.66,5.3e-05,2]
[394418788,1763552823422,396.66,5.4e-05,2]
[394418789,1763552823708,396.66,5.6e-05,2]
[394418790,1763552824026,396.66,5.7e-05,2]
[394418791,1763552824461,396.66,5.9e-05,2]
[394418792,1763552824837,396.66,6e-05,2]
[394418793,1763552825320,396.66,6.1e-05,2]
[394418794,1763552825550,396.66,6.3e-05,2]
[394418795,1763552825842,396.66,6.4e-05,2]
[394418796,1763552826109,5000.0,0.00014849,2]
[394418797,1763552826138,396.66,6.6e-05,2]
[394418798,1763552826406,240.09,6.7e-05,2]
[394418799,1763552826428,156.57,6.7e-05,2]
[394418800,1763552826696,396.66,6.9e-05,2]
[394418801,1763552827084,396.66,7e-05,2]
[394418802,1763552828033,396.66,7.1e-05,2]
[394418803,1763552828369,396.66,7.3e-05,2]
[394418804,1763552828651,396.66,7.4e-05,2]
[394418805,1763552828956,396.66,7.6e-05,2]
[394418806,1763552829331,396.66,7.7e-05,2]
[394418807,1763552829558,396.66,7.9e-05,2]
[394418808,1763552829841,396.66,8e-05,2]
[394418809,1763552830188,396.66,8.1e-05,2]
[394418810,1763552830574,396.66,8.3e-05,2]
[394418811,1763552830858,396.66,8.4e-05,2]
[394418812,1763552831180,396.66,8.6e-05,2]
[394418813,1763552831470,396.66,8.7e-05,2]
[394418814,1763552831744,396.66,8.9e-05,2]
[394418815,1763552832055,396.66,9e-05,2]
[394418816,1763552832353,396.66,9.1e-05,2]
[394418817,1763552832626,396.66,9.3e-05,2]
[394418818,1763552833048,396.66,9.4e-05,2]
[394418819,1763552833430,396.66,9.6e-05,2]
[394418820,1763552833750,396.66,9.7e-05,2]
[394418821,1763552834060,396.66,9.9e-05,2]
[394418822,1763552835008,396.66,0.0001,2]
[394418823,1763552835543,396.66,0.000101,2]
[394418824,1763552835679,396.66,0.000103,2]
[394418825,1763552835958,396.66,0.000104,2]
[394418826,1763552836253,396.66,0.000106,2]
[394418827,1763552836542,396.66,0.000107,2]
[394418828,1763552836827,396.66,0.000109,2]
[394418829,1763552837116,396.66,0.00011,2]
[394418830,1763552837396,396.66,0.000111,2]
[394418831,1763552837691,396.66,0.000113,2]
[394418832,1763552837994,396.66,0.000114,2]
[394418833,1763552838285,396.66,0.000116,2]
[394418834,1763552838570,396.66,0.000117,2]
[394418835,1763552838848,396.66,0.000119,2]
[394418836,1763552839167,396.66,0.00012,2]
[394418837,1763552848124,1273.49,0.00014849,2]
[394418838,1763552848145,3726.51,0.00014849,2]
[394418839,1763552870708,5000.0,0.00014849,2]
[394418840,1763552881663,202.2,5e-05,2]
[394418841,1763552881948,202.2,0.00012,2]
[394418842,1763552892944,869.1,0.00014849,2]
[394418843,1763552940643,169.604862,7.043e-05,2]
[394418844,1763552940868,169.604862,0.00014086,2]
[394418845,1763552997314,482.54829193,0.00014541,2]
[394418846,1763553000021,1928.26297455,0.00014541,2]
[394418847,1763553002323,683.61008023,0.00014577,2]
[394418848,1763553004695,1538.12268052,0.00014577,2]
[394418849,1763553006156,5000.0,0.00014839,2]
[394418850,1763553007787,28.25624877,0.00014577,2]